Cogmind - Beta 16 @@@ ROGUE MODE // 2025.10.26 @ 17:08:31 Player: JuustuToug Result: Destroyed by G-73 Enforcer with Phase Gun Performance ------------- Evolutions (8) 4000 Regions Visited (20) 4000 Robots Destroyed (82) 410 Value Destroyed (2493) 2493 Prototype IDs (91) 1820 Alien Tech Used (7) 1400 Bonus (12834) 12834 TOTAL SCORE: 26957 Bonus ------- Triggered Max Security 1000 Follower Combat Kills 756 Registered with UFD 300 Met Optimus in HQ 500 Met Zhirov 300 Met Warlord at Base 500 MAIN.C Attacked Warlord 500 Used Core Reset Matrix 3000 Hacked Protovariant 500 Scanned by Researcher 500 Met Sigix 2000 Activated Exoskeleton 3000 Friendly Fire -22 Cogmind --------- Core Integrity 0/1450 Matter 235/300 Energy 98/100 System Corruption 20% Temperature Cool (9) Movement Core (50) Location -2/Section 7 Parts ------- > --- POWER (2) -------- (None) > --- PROPULSION (5) --- (None) > --- UTILITY (14) ----- Machine Analyzer Advanced Signal Interpreter Advanced Target Analyzer Armor Integrity Analyzer Hacking Suite Advanced Hacking Suite > --- WEAPON (2) ------- (None) > --- INVENTORY (5) ---- Core Cannon Peak State ------------ > --- POWER ------------ Light Neutrino Core Mini Fusion Reactor > --- PROPULSION ------- Field Propulsion Array Q-thruster Cooled Impulse Thruster Cooled Impulse Thruster > --- UTILITY ---------- Medium Storage Unit Gravity Neutralizer Machine Analyzer Spectral Analyzer Advanced Sensor Array Advanced Signal Interpreter Transmission Jammer ECM Suite Graphene Brace Advanced Thermal Defense Suite Hacking Suite Advanced Hacking Suite Advanced System Shield Advanced System Shield > --- WEAPON ----------- Sigix Broadsword > --- INVENTORY -------- Impulse Thruster Array Advanced Sensor Array Terrabomb Core Cannon Fusion Bomb Launcher Force Lance Sigix Containment Pod [Rating: 163] Favorites ----------- Power Mini Fusion Reactor Engine Light Ion Engine Power Core Micro Fission Core Reactor Mini Fusion Reactor Propulsion Light Treads Treads Light Treads Leg Experimental Myomer Leg Wheel Wheel Hover Unit Improved Antigrav System Flight Unit Cooled Nuclear Pulse Thruster Utility Advanced System Shield Device Advanced Sensor Array Storage Huge Storage Unit Processor A0-MCA's Component Scanner Hackware Advanced System Shield Protection Light Armor Plating Weapon Grenade Launcher Energy Gun Subdweller Laser Energy Cannon Subdweller Beam Cannon Launcher Grenade Launcher Special Weapon Molecular Deconstructor Slashing Weapon Phasing Sabre Piercing Weapon Force Lance Build | -11 -10 -10 -7 -5 -5 -5 -5 -4 -4 -4 -4 -4 -4 -4 -3 -3 -3 -2 -2 -2 ------- Run | Yrd Mat Sub Scr Fac Upp Upp Zhi Pro Fac Was Fac Upp Upp War Pro Res Tes Res Qua Sec Slots Evolved 16 | . . . . 10 . . . . 2 . . . . . . 2 . 2 . . Power 1 | . . . . 1 . . . . . . . . . . . . . . . . Propulsion 3 | . . . . 3 . . . . . . . . . . . . . . . . Utility 12 | . . . . 6 . . . . 2 . . . . . . 2 . 2 . . Weapon . | . . . . . . . . . . . . . . . . . . . . . Parts Attached 163 | 3 15 10 5 28 4 3 1 . 8 1 7 2 1 10 . 7 5 10 22 21 Power 26 | . 3 4 2 2 . 1 1 . . . 3 . . 1 . . . . 7 2 Engine 12 | . 3 4 2 1 . . . . . . . . . . . . . . 1 1 Core 6 | . . . . 1 . 1 1 . . . . . . . . . . . 3 . Reactor 8 | . . . . . . . . . . . 3 . . 1 . . . . 3 1 Propulsion 43 | 2 3 3 . 8 . . . . 4 . . . . 3 . 4 1 2 4 9 Treads 6 | 2 2 2 . . . . . . . . . . . . . . . . . . Leg 1 | . . . . . . . . . . . . . . 1 . . . . . . Wheel 2 | . 1 1 . . . . . . . . . . . . . . . . . . Hover 2 | . . . . . . . . . . . . . . . . . . . . 2 Flight 32 | . . . . 8 . . . . 4 . . . . 2 . 4 1 2 4 7 Utility 66 | 1 4 . 2 16 2 1 . . 4 1 3 1 1 2 . 1 2 6 10 9 Device 26 | . 2 . . 7 1 . . . 2 . 2 1 1 1 . . . 2 5 2 Storage 4 | 1 1 . . 1 . . . . . . . . . . . 1 . . . . Processor 11 | . . . 1 2 . . . . 1 1 . . . . . . 1 . 2 3 Hackware 14 | . . . . 6 . . . . 1 . 1 . . 1 . . . 2 1 2 Protection 11 | . 1 . 1 . 1 1 . . . . . . . . . . 1 2 2 2 Artifact . | . . . . . . . . . . . . . . . . . . . . . Weapon 28 | . 5 3 1 2 2 1 . . . . 1 1 . 4 . 2 2 2 1 1 Energy Gun 9 | . 4 2 1 1 . . . . . . . . . 1 . . . . . . Energy Cannon 5 | . . 1 . . . . . . . . . . . 2 . 1 1 . . . Ballistic Gun . | . . . . . . . . . . . . . . . . . . . . . Ballistic Cannon . | . . . . . . . . . . . . . . . . . . . . . Launcher 4 | . 1 . . . . . . . . . . 1 . . . 1 1 . . . Special Weapon 3 | . . . . . . 1 . . . . . . . 1 . . . . . 1 Impact Weapon . | . . . . . . . . . . . . . . . . . . . . . Slashing Weapon 6 | . . . . 1 2 . . . . . 1 . . . . . . 1 1 . Piercing Weapon 1 | . . . . . . . . . . . . . . . . . . 1 . . Special Melee Weapon . | . . . . . . . . . . . . . . . . . . . . . Unidentified Prototypes 19 | . . . . . . . 1 . . . . 1 . 7 . 2 3 2 3 . Corrupted Parts 3 | . . 2 . . . . . . . . . . . . . . . . 1 . System Corruption 12 | . . 11 . . . . . . . . . . . . . . . . 1 . Parts Lost 52 | . 2 2 . 3 . . . . . 2 . 3 . . . . . 5 13 22 Power 8 | . . 1 . 1 . . . . . 1 . . . . . . . . 4 1 Propulsion 17 | . . . . 2 . . . . . . . 1 . . . . . 1 3 10 Utility 23 | . 1 . . . . . . . . 1 . 2 . . . . . 4 5 10 Weapon 4 | . 1 1 . . . . . . . . . . . . . . . . 1 1 Highest Loss Streak 11 | . 1 1 . 3 . . . . . 2 . 3 . . . . . 3 9 11 To Critical Strikes . | . . . . . . . . . . . . . . . . . . . . . Average Backups 15 | 4 21 23 22 8 8 8 8 8 7 8 7 7 6 7 8 7 9 8 6 3 Power 1 | 1 1 2 1 . . . . . . . . . . . . . . . . . Propulsion 4 | 1 11 8 5 . . . . . . 1 1 . . . 2 3 3 3 1 . Utility 7 | . 3 7 13 6 7 7 6 6 4 5 5 4 4 3 3 1 2 2 . . Weapon 2 | 1 4 3 2 1 1 1 1 1 1 1 . 1 2 2 3 3 3 3 3 1 Tool/Special . | . . . . . . . . . . . . . . . . . . . . . Unused Backups 44 | . 6 5 13 8 1 . 1 . 2 . 2 . . . . . 1 . 3 2 Power 4 | . 1 . 3 . . . . . . . . . . . . . . . . . Propulsion 9 | . 3 2 2 . . . . . . . . . . . . . 1 . 1 . Utility 19 | . 1 1 6 7 1 . 1 . 1 . 1 . . . . . . . . . Weapon 10 | . 1 2 2 1 . . . . 1 . . . . . . . . . 2 1 Tool/Special 2 | . . . . . . . . . . . 1 . . . . . . . . 1 Average Slot Usage (%) 93 | . 97 99 99 87 86 87 88 88 90 82 87 88 88 88 89 89 90 90 87 59 Engine 8 | . 13 13 13 8 . . . . . . 4 . . . . . . . . . Reactor 1 | . . . . . . . . . . . 4 10 10 9 10 9 9 8 5 1 Treads 14 | . 19 26 28 . . . . . . . . . . . . . . . . . Wheel 1 | . 8 1 . . . . . . . . . . . . . . . . . . Flight 8 | . . . . 25 23 23 23 23 22 21 21 21 21 20 21 19 19 17 15 4 Device 7 | . 12 . . 9 10 10 11 11 14 13 10 10 14 15 15 22 20 15 20 9 Storage 10 | . 14 14 14 5 5 5 5 5 5 5 5 5 5 5 5 4 4 4 4 1 Processor 7 | . . . 4 15 17 17 17 17 15 15 15 14 10 10 10 9 11 13 10 17 Hackware 6 | . . . . 12 11 11 11 11 14 15 20 20 15 15 15 14 14 18 18 18 Protection 5 | . . 14 9 . . . . . . . . . 5 5 5 4 4 7 2 . Energy Gun 9 | . 26 14 14 . . . . . . . . . . . . . . . . . Energy Cannon 1 | . . 9 . . . . . . . . . . . . . . . . . . Launcher 4 | . . 3 14 . . . . . . . . . . . . . . . . . Slashing Weapon 2 | . . . . 4 9 10 11 10 10 8 5 4 4 4 5 4 4 3 3 . Peak Build Rating 163 | 3 9 14 24 78 80 86 83 79 105 106 126 126 118 128 127 136 147 147 163 136 Average Rating 50 | 2 8 13 15 56 76 78 78 78 100 96 106 125 117 120 127 133 136 141 140 82 On Entrance 84 | . 3 9 14 22 71 78 77 79 79 105 91 126 118 118 127 127 136 137 140 111 Avg Prop Armor Cover (%) 11 | . 10 9 . . . . . . 5 16 16 . . 7 . . . 4 . 19 Naked Turns . | . . . . . . . . . . . . . . . . . . . . . Heaviest Build 102 | 5 92 102 95 23 34 34 22 20 23 23 32 38 38 42 38 45 45 47 52 43 Greatest Support 59 | 40 40 40 40 26 36 33 33 24 33 33 42 45 51 56 47 57 57 57 59 50 Greatest Overweight (x) 9 | . 9 9 2 . . 1 . . . . . . . 2 . . . 3 . . Average Overweight (x) . | . 5 2 2 . . . . . . . . . . . . . . . . . Largest Inventory Capacity 25 | 8 25 25 25 25 8 8 8 8 8 8 8 8 8 8 8 10 10 10 10 10 Average Capacity 17 | 7 23 25 25 8 8 8 8 8 8 8 8 8 8 8 8 8 10 10 10 6 Most Carried 25 | 8 25 25 25 24 8 8 8 8 8 8 8 8 7 8 8 10 10 10 10 10 Average Carried 16 | 5 21 24 22 8 8 8 7 8 7 8 7 7 5 7 8 8 9 9 9 5 Final Capacity 25 | 8 25 25 25 8 8 8 8 8 8 8 8 8 8 8 8 10 10 10 10 5 Final Carried 25 | 8 24 25 24 8 8 8 8 8 8 8 8 6 6 8 8 10 10 9 7 2 Class Distribution -------------------- 58% | Mutant 18% | Hacker-Scout 15% | Hacker-Ninja Dominant Class ---------------- Mutant | -10/Materials Mutant | -10/Subcaves Mutant | -7/Scraptown Derelict-Ninja | -5/Factory Hacker-Scout | -5/Upper Caves Hacker-Scout | -5/Upper Caves Hacker-Ninja | -5/Zhirov Hacker-Ninja | -4/Proximity Caves Hacker-Ninja | -4/Factory Hacker-Ninja | -4/Waste Hacker-Ninja | -4/Factory Hacker-Scout | -4/Upper Caves Hacker-Scout | -4/Upper Caves Hacker-Scout | -4/Warlord Hacker-Scout | -3/Proximity Caves Hacker-Ninja | -3/Research Hacker-Scout | -3/Testing Hacker-Scout | -2/Research Hacker-Ninja | -2/Quarantine Hacker-Mutant | -2/Section 7 Resources | -11 -10 -10 -7 -5 -5 -5 -5 -4 -4 -4 -4 -4 -4 -4 -3 -3 -3 -2 -2 -2 ----------- Run | Yrd Mat Sub Scr Fac Upp Upp Zhi Pro Fac Was Fac Upp Upp War Pro Res Tes Res Qua Sec Matter Collected 3022 | 223 257 150 182 270 100 61 54 40 140 . 60 201 124 179 . 11 59 199 365 347 Remotely . | . . . . . . . . . . . . . . . . . . . . . Salvage Created 4079 | . 1037 248 . 486 459 42 309 . 161 . 259 . 33 . . 11 59 139 553 283 Parts 198 | . 78 22 . 9 4 2 8 . 8 . 9 . 5 . . 1 1 4 31 16 Haulers Intercepted 7 | . 2 . . 3 . . . . 1 . 1 . . . . . . . . . Recyclers Shooed 1 | . 1 . . . . . . . . . . . . . . . . . . . Parts Field Recycled . | . . . . . . . . . . . . . . . . . . . . . Retrieved Matter . | . . . . . . . . . . . . . . . . . . . . . Parts Self-Destructed 21 | . . 8 . . 2 4 5 . . . . . 2 . . . . . . . Prevented 8 | . . 2 . . . . . 3 . . . 2 1 . . . . . . . Parts Restored . | . . . . . . . . . . . . . . . . . . . . . Kills | -11 -10 -10 -7 -5 -5 -5 -5 -4 -4 -4 -4 -4 -4 -4 -3 -3 -3 -2 -2 -2 ------- Run | Yrd Mat Sub Scr Fac Upp Upp Zhi Pro Fac Was Fac Upp Upp War Pro Res Tes Res Qua Sec Combat Hostiles Destroyed 40 | . 16 7 . . . 1 . . . . . . 4 . . . . . 4 8 Melee 1 | . . . . . . 1 . . . . . . . . . . . . . . Guns 14 | . 13 1 . . . . . . . . . . . . . . . . . . Cannons 2 | . . 2 . . . . . . . . . . . . . . . . . . AOE 22 | . 3 3 . . . . . . . . . . 4 . . . . . 4 8 Classes Destroyed 13 | . 8 2 . . 1 1 . . . . . . . . . . 1 . . . Worker 2 | . . . . . . . . . . . . . . . . 1 . . 1 . Builder 2 | . 2 . . . . . . . . . . . . . . . . . . . Tunneler 2 | . 2 . . . . . . . . . . . . . . . . . . . Hauler 7 | . 2 . . 3 . . . . 1 . 1 . . . . . . . . . Recycler 6 | . 3 . . 1 . . . . . . . . . . . . . 1 . 1 Operator 6 | . 2 . . 1 . . . . 1 . 1 . . . . . . . . 1 Watcher 11 | . 3 . . 2 . . . . 1 . 3 . . . . . . . 2 . Swarmer 25 | . 6 3 . . . . . . . . . . 4 . . . . . 4 8 Grunt 10 | . 10 . . . . . . . . . . . . . . . . . . . Researcher 6 | . . . . . . . . . . . . . . . . . 1 . 5 . Sentry 1 | . . 1 . . . . . . . . . . . . . . . . . . Programmer 1 | . . . . . . 1 . . . . . . . . . . . . . . Subdweller 3 | . . 3 . . . . . . . . . . . . . . . . . . Decomposer 3 | . . . . . 3 . . . . . . . . . . . . . . . Packrat 2 | . . . . . 2 . . . . . . . . . . . . . . . Best Kill Streak 5 | . 3 3 . 2 . 1 . . 1 . 2 . 4 . . 1 1 1 5 5 Combat Bots Only 5 | . 3 3 . . . 1 . . . . . . 4 . . . . . 4 5 Max Kills in Single Turn 5 | . 3 3 . 1 1 1 . . 1 . 1 . 3 . . 1 1 1 5 3 Gunslinging 1 | . 1 . . . . . . . . . . . . . . . . . . . Exploded 4 | . 3 3 . . . . . . . . . . 3 . . . . . 4 3 Melee 1 | . . . . . . 1 . . . . . . . . . . . . . . Uniques/NPCs Destroyed . | . . . . . . . . . . . . . . . . . . . . . Combat | -11 -10 -10 -7 -5 -5 -5 -5 -4 -4 -4 -4 -4 -4 -4 -3 -3 -3 -2 -2 -2 -------- Run | Yrd Mat Sub Scr Fac Upp Upp Zhi Pro Fac Was Fac Upp Upp War Pro Res Tes Res Qua Sec Hostile Shots Fired 647 | . 45 15 . 4 7 20 2 6 . 1 44 4 16 6 2 7 34 90 169 175 Missed 308 | . 10 5 . 4 5 15 2 4 . . 28 4 10 3 1 3 23 53 75 63 Hits 339 | . 35 10 . . 2 5 . 2 . 1 16 . 6 3 1 4 11 37 94 112 Melee 4 | . . . . . . . . . . 1 . . . . . . . . . 3 Projectile 335 | . 35 10 . . 2 5 . 2 . . 16 . 6 3 1 4 11 37 94 109 Critical Strikes 21 | . 1 1 . . . . . . . . 1 . . . . . 2 1 9 6 Actively Blocked 10 | . . . . . . . . . . . . . . . . . . . 8 2 Damage Taken 8469 | . 484 187 . 132 40 81 . 41 . 60 250 230 108 110 19 80 246 966 2547 2888 Core 2115 | . 86 . . 41 . 58 . 27 . . 57 . 15 . . . 68 153 546 1064 Absorbed by Shields . | . . . . . . . . . . . . . . . . . . . . . Redirected to Shielding 113 | . . . . . . . . . . . . . . . . . . 113 . . Regen/Repaired (Parts) 422 | . . . . . . . . . . . 32 . . 63 . . . 116 211 . Core Remaining (%) 87 | 100 . . 65 . . . . 87 . . . . . . 93 . 94 . . . Volleys Fired 97 | . 57 16 . 1 . 3 . 6 . . . 4 3 1 . . . . 1 5 Largest 2 | . 2 2 . 1 . 1 . 1 . . . 1 1 1 . . . . 1 1 Hottest 140 | . 80 140 . 81 . . . 30 . . . 52 52 50 . . . . 52 52 Shots Fired 168 | . 108 36 . 1 . 3 . 6 . . . 4 3 1 . . . . 1 5 Gun 132 | . 107 24 . 1 . . . . . . . . . . . . . . . . Cannon 12 | . . 11 . . . . . . . . . . . 1 . . . . . . Launcher 21 | . 1 1 . . . . . 6 . . . 4 3 . . . . . 1 5 Special 3 | . . . . . . 3 . . . . . . . . . . . . . . Kinetic . | . . . . . . . . . . . . . . . . . . . . . Thermal 15 | . . 14 . 1 . . . . . . . . . . . . . . . . Explosive 21 | . 1 1 . . . . . 6 . . . 4 3 . . . . . 1 5 Electromagnetic 128 | . 107 21 . . . . . . . . . . . . . . . . . . Entropic 1 | . . . . . . . . . . . . . . 1 . . . . . . Robot Hit Streak 12 | . 11 12 . . . . . . . . . . 2 . . . . . 3 6 Robot Miss Streak 6 | . 6 1 . . . . . . . . . . . . . . . . . . Penetration Max . | . . . . . . . . . . . . . . . . . . . . . Secondary Targets 1 | . 1 . . . . . . . . . . . . . . . . . . . Max Gunslinging Chain 1 | . 1 . . . . . . . . . . . . . . . . . . . Shots Hit Robots 169 | . 61 22 . 16 9 2 9 . 7 . 18 . 1 . . 1 2 2 14 5 Core Hits 109 | . 41 11 . 7 7 1 2 . 3 . 5 . 3 . . 1 . . 10 18 Critical Kills . | . . . . . . . . . . . . . . . . . . . . . Critical Parts Destroyed . | . . . . . . . . . . . . . . . . . . . . . Critical Strikes 6 | . . . . 1 . . . . 1 . 3 . . . . . . . 1 . Sever 5 | . . . . 1 . . . . 1 . 3 . . . . . . . . . Impale 1 | . . . . . . . . . . . . . . . . . . . 1 . Melee Attacks 232 | . . . . 52 9 4 10 9 22 . 27 10 4 . . 8 7 21 32 17 Impact . | . . . . . . . . . . . . . . . . . . . . . Slashing 192 | . . . . 52 9 4 10 9 22 . 27 10 4 . . 8 7 12 18 . Piercing 40 | . . . . . . . . . . . . . . . . . . 9 14 17 Sneak Attacks 27 | . . . . 6 5 . . . 3 . 3 . . . . 1 1 1 6 1 Combat Hostiles . | . . . . . . . . . . . . . . . . . . . . . Follow-up Attacks 4 | . . . . . . 1 1 . 1 . . . . . . . . . 1 . Damage Inflicted 10736 | . 1148 444 . 992 707 82 756 . 487 . 1052 . 591 . . 168 323 248 2182 1556 Guns 1121 | . 930 191 . . . . . . . . . . . . . . . . . . Cannons 112 | . . 112 . . . . . . . . . . . . . . . . . . Explosions 2905 | . 200 141 . . . . . . . . . . 591 . . . . . 622 1351 Melee 6541 | . . . . 992 707 82 756 . 487 . 1052 . . . . 168 323 248 1560 166 Ramming 57 | . 18 . . . . . . . . . . . . . . . . . . 39 Kinetic . | . . . . . . . . . . . . . . . . . . . . . Thermal 209 | . 97 112 . . . . . . . . . . . . . . . . . . Explosive 2808 | . 103 141 . . . . . . . . . . 591 . . . . . 622 1351 Electromagnetic 1121 | . 930 191 . . . . . . . . . . . . . . . . . . Impact . | . . . . . . . . . . . . . . . . . . . . . Slashing 5678 | . . . . 992 707 82 756 . 487 . 1052 . . . . 168 323 248 863 . Piercing 863 | . . . . . . . . . . . . . . . . . . . 697 166 Highest Corruption 20 | . 1 12 . . . . . . . . . 7 7 7 . . . 1 8 20 Average Corruption 8 | . 1 11 . . . . . . . . . 7 7 7 . . . 1 3 15 Corruption Purged . | . . . . . . . . . . . . . . . . . . . . . Corruption Blocked . | . . . . . . . . . . . . . . . . . . . . . Effects 149 | . 4 90 . . . . . . . . . 1 10 2 . . . 1 7 34 Message Errors 34 | . 1 22 . . . . . . . . . . 3 . . . . . 2 6 Matter Fused 31 | . . 16 . . . . . . . . . 1 4 1 . . . . . 9 Heat Flow Errors 24 | . 1 17 . . . . . . . . . . 2 . . . . 1 1 2 Energy Discharges 14 | . 1 9 . . . . . . . . . . 1 . . . . . . 3 Parts Rejected 1 | . . 1 . . . . . . . . . . . . . . . . . . Data Loss (minor) 16 | . 1 9 . . . . . . . . . . . . . . . . 3 3 Data Loss (major) 14 | . . 11 . . . . . . . . . . . 1 . . . . 1 1 Misfires 5 | . . 5 . . . . . . . . . . . . . . . . . . Misdirections 10 | . . . . . . . . . . . . . . . . . . . . 10 Overload Shots . | . . . . . . . . . . . . . . . . . . . . . Overflow Damage 1929 | . . . . 177 135 43 198 . 86 . 165 . 81 . . . 193 163 555 133 Projectiles . | . . . . . . . . . . . . . . . . . . . . . Explosions 214 | . . . . . . . . . . . . . 81 . . . . . . 133 Melee 1715 | . . . . 177 135 43 198 . 86 . 165 . . . . . 193 163 555 . Knockbacks . | . . . . . . . . . . . . . . . . . . . . . Impact . | . . . . . . . . . . . . . . . . . . . . . Kinetic . | . . . . . . . . . . . . . . . . . . . . . Secondary . | . . . . . . . . . . . . . . . . . . . . . Self-Inflicted Damage 183 | . 70 3 . . . . . 14 . . . . . . . . . . . 96 Shots 6 | . 2 1 . . . . . 1 . . . . . . . . . . . 2 Rammed 8 | . 2 . . . . . . . . . . . . . . . . . . 6 Targets Rammed 8 | . 2 . . . . . . . . . . . . . . . . . . 6 Kicked . | . . . . . . . . . . . . . . . . . . . . . Crushed . | . . . . . . . . . . . . . . . . . . . . . Highest Temperature 309 | . 208 268 . 26 8 . . . . . 28 289 182 110 . 309 179 267 100 118 Average Temperature 78 | . 51 91 . 19 5 . . . . . 15 134 63 54 . 146 67 113 50 68 Received Heat Transfer 1294 | . 174 330 . . 9 . . . . . 42 . 9 36 . 18 37 45 243 351 Siege Activations . | . . . . . . . . . . . . . . . . . . . . . Martial Activations . | . . . . . . . . . . . . . . . . . . . . . Shielding Activations . | . . . . . . . . . . . . . . . . . . . . . Robots Disrupted . | . . . . . . . . . . . . . . . . . . . . . Combat Hostiles . | . . . . . . . . . . . . . . . . . . . . . Robots Corrupted 1 | . . 1 . . . . . . . . . . . . . . . . . . Combat Hostiles 1 | . . 1 . . . . . . . . . . . . . . . . . . Parts Fried 5 | . 4 1 . . . . . . . . . . . . . . . . . . Impact Corruptions . | . . . . . . . . . . . . . . . . . . . . . Robots Melted . | . . . . . . . . . . . . . . . . . . . . . Combat Hostiles . | . . . . . . . . . . . . . . . . . . . . . Parts Melted 1 | . 1 . . . . . . . . . . . . . . . . . . . Heat Transferred 198 | . 50 148 . . . . . . . . . . . . . . . . . . Parts Sabotaged 2 | . . . . . . . . . . . . . . . . . . . . 2 Parts Stolen . | . . . . . . . . . . . . . . . . . . . . . Parts Stripped . | . . . . . . . . . . . . . . . . . . . . . Power Chain Reactions 3 | . 3 . . . . . . . . . . . . . . . . . . . Alert | -11 -10 -10 -7 -5 -5 -5 -5 -4 -4 -4 -4 -4 -4 -4 -3 -3 -3 -2 -2 -2 ------- Run | Yrd Mat Sub Scr Fac Upp Upp Zhi Pro Fac Was Fac Upp Upp War Pro Res Tes Res Qua Sec Maximum Alert Level 5 | . . . . . . . . . . . . . . . . . . 1 1 5 Low Security (%) 88 | 100 100 . . 100 . . . . 100 100 100 . . . . 100 100 90 62 29 Level 1 7 | . . . . . . . . . . . . . . . . . . 9 37 25 Level 2 . | . . . . . . . . . . . . . . . . . . . . . Level 3 . | . . . . . . . . . . . . . . . . . . . . . Level 4 . | . . . . . . . . . . . . . . . . . . . . . Level 5 . | . . . . . . . . . . . . . . . . . . . . . High Security . | . . . . . . . . . . . . . . . . . . . . . Max Security 4 | . . . . . . . . . . . . . . . . . . . . 44 Peak Influence 2012 | . 148 . . 41 . . . . 47 8 55 . . . . 80 138 263 251 2012 Initial 94 | . . . . . . . . . . 8 . . . . . 6 21 77 94 84 Average 130 | . 40 . . 8 . . . . 17 3 23 . . . . 41 63 98 170 834 Influence Increases 4258 | . 608 165 . 300 65 71 15 . 138 . 214 120 120 105 30 140 167 419 615 966 Destroy 0b10 Robot/C 1120 | . 320 80 . . . 40 . . . . . . 80 80 . . 20 . 180 320 Destroy 0b10 Robot/NC 195 | . 70 . . 35 5 . 15 . 15 . 20 . . . . 5 . 5 15 10 Destroy Leader 166 | . 70 10 . 10 . . . . 4 . 8 . 10 . . . . . 14 40 Allied During Kill 70 | . . . . . . 1 . . . . . . . 25 . . . . . 44 Successful Hack 553 | . 42 . . 42 . . . . 82 . 66 . . . . 106 70 39 106 . Disable Machine 300 | . 30 . . 60 . . . . . . 15 . . . . . 30 45 75 45 Destroy Structure 384 | . 16 . . 48 . . . . 22 . . . . . . 14 2 15 75 192 Partial Spotted 165 | . . . . 60 . . . . 15 . 30 . . . . 15 15 . 30 . Lose Combat Pursuer 1305 | . 60 75 . 45 60 30 . . . . 75 120 30 . 30 . 30 315 120 315 Influence Decreases 3598 | . 464 238 71 297 68 29 57 . 115 23 162 172 10 142 93 112 67 389 632 457 Entered New Map 626 | . . 70 71 . 2 . 42 . . 15 . 20 . 110 73 4 17 61 74 67 Time Decay 2217 | . 444 154 . 259 66 29 15 . 82 . 130 152 10 32 20 108 50 238 278 150 Lost Part 472 | . 20 14 . 30 . . . . . 8 . . . . . . . 50 130 220 Lost Ally 68 | . . . . 8 . . . . . . . . . . . . . 40 . 20 Purge Threat 215 | . . . . . . . . . 33 . 32 . . . . . . . 150 . Squads Dispatched 53 | . 3 . . 3 . . . . 4 . 2 . . . . . 6 5 7 23 Investigation 7 | . 1 . . . . . . . 2 . 1 . . . . . 1 1 1 . Extermination 10 | . . . . 3 . . . . . . . . . . . . 1 3 2 1 Reinforcement 15 | . 2 . . . . . . . 2 . 1 . . . . . 3 1 4 2 Assault 21 | . . . . . . . . . . . . . . . . . 1 . . 20 Garrison . | . . . . . . . . . . . . . . . . . . . . . Intercept . | . . . . . . . . . . . . . . . . . . . . . Searches Triggered . | . . . . . . . . . . . . . . . . . . . . . Construction Impeded 1 | . . . . . . . . . . . . . . . . . . . 1 . Haulers Reinforced 2 | . . . . . . . . . 1 . 1 . . . . . . . . . Active Scanning Responses . | . . . . . . . . . . . . . . . . . . . . . Cargo Convoy Interrupts . | . . . . . . . . . . . . . . . . . . . . . Stealth | -11 -10 -10 -7 -5 -5 -5 -5 -4 -4 -4 -4 -4 -4 -4 -3 -3 -3 -2 -2 -2 --------- Run | Yrd Mat Sub Scr Fac Upp Upp Zhi Pro Fac Was Fac Upp Upp War Pro Res Tes Res Qua Sec Distress Signals 13 | . 3 . . . . . . . . . 2 . . 1 . . 1 2 1 3 Communications Jammed 34 | . . . . 3 . . . . . . 14 . . . . . 17 . . . Distress Signals 34 | . . . . 3 . . . . . . 14 . . . . . 17 . . . Times Spotted 346 | . 26 6 . 7 6 6 3 1 5 6 22 8 10 17 2 3 17 70 31 100 Peak Tracking Total 29 | . 4 5 . 2 2 4 3 1 3 6 9 8 7 11 2 2 15 29 9 29 Tactical Retreats 54 | . 2 2 . 3 4 1 . . . . 3 3 2 . 1 . 1 11 7 14 ECM-based Alert Blocks 73 | . . . . . . . . . . . . . . . . . . 32 15 26 Traps | -11 -10 -10 -7 -5 -5 -5 -5 -4 -4 -4 -4 -4 -4 -4 -3 -3 -3 -2 -2 -2 ------- Run | Yrd Mat Sub Scr Fac Upp Upp Zhi Pro Fac Was Fac Upp Upp War Pro Res Tes Res Qua Sec Traps Triggered 16 | . 7 . . 1 . . . . 1 . . . . . . . . 5 2 . Indirectly . | . . . . . . . . . . . . . . . . . . . . . Trap Hack Attempts . | . . . . . . . . . . . . . . . . . . . . . Triggered . | . . . . . . . . . . . . . . . . . . . . . Disarmed . | . . . . . . . . . . . . . . . . . . . . . Reprogrammed . | . . . . . . . . . . . . . . . . . . . . . Reused . | . . . . . . . . . . . . . . . . . . . . . Traps Extracted . | . . . . . . . . . . . . . . . . . . . . . Installed 1 | . . 1 . . . . . . . . . . . . . . . . . . Triggered . | . . . . . . . . . . . . . . . . . . . . . Most Traps Carried 1 | . . 1 . . . . . . . . . . . . . . . . . . Machines | -11 -10 -10 -7 -5 -5 -5 -5 -4 -4 -4 -4 -4 -4 -4 -3 -3 -3 -2 -2 -2 ---------- Run | Yrd Mat Sub Scr Fac Upp Upp Zhi Pro Fac Was Fac Upp Upp War Pro Res Tes Res Qua Sec Machines Disabled 26 | . 2 . . 4 . 1 1 . . . 1 1 . 1 . . 2 3 5 5 Max in Single Turn 2 | . 1 . . 1 . 1 1 . . . 1 1 . 1 . . 1 1 1 2 Garrison Access 4 | . . . . 1 . . . . 1 . . . . . . 1 . . 1 . Machines Repaired . | . . . . . . . . . . . . . . . . . . . . . Machines Dismantled . | . . . . . . . . . . . . . . . . . . . . . Machines Sabotaged . | . . . . . . . . . . . . . . . . . . . . . Overloaded Fab Kills . | . . . . . . . . . . . . . . . . . . . . . Hacking | -11 -10 -10 -7 -5 -5 -5 -5 -4 -4 -4 -4 -4 -4 -4 -3 -3 -3 -2 -2 -2 --------- Run | Yrd Mat Sub Scr Fac Upp Upp Zhi Pro Fac Was Fac Upp Upp War Pro Res Tes Res Qua Sec Machines Accessed 104 | . 8 1 7 16 1 . 4 . 8 . 7 1 2 6 1 5 9 9 16 3 Terminals 50 | . 5 . . 8 . . . . 4 . 3 . 1 . 1 3 7 5 10 3 Fabricators 5 | . . . . 2 . . . . 1 . 1 . . . . 1 . . . . Repair Stations 7 | . 1 . . . . . . . 1 . 1 . . . . . . 2 2 . Recycling Units 4 | . 2 . . 2 . . . . . . . . . . . . . . . . Scanalyzers 11 | . . . . 2 . . . . 1 . 2 . . . . . 2 1 3 . Garrison Access 6 | . . . . 2 . . . . 1 . . . . . . 1 . 1 1 . Total Hacks 430 | . 17 4 27 59 1 . 17 . 53 . 42 1 2 21 1 31 35 48 66 5 Successful 246 | . 10 4 27 37 1 . 17 . 30 . 25 1 2 21 1 12 7 13 36 2 Failed 183 | . 7 . . 21 . . . . 23 . 17 . . . . 19 28 35 30 3 Catastrophic 34 | . . . . . . . . . 3 . 2 . . . . 7 11 8 3 . Database Lockouts 1 | . . . . 1 . . . . . . . . . . . . . . . . Manual 117 | . 14 . . 24 . 1 . . 20 . 8 . . . . 21 1 17 11 . Terminals 255 | . 13 . . 41 . . . . 37 . 26 . 1 . 1 27 26 33 45 5 Fabricators 11 | . . . . 4 . . . . 2 . 2 . . . . 3 . . . . Repair Stations 23 | . 2 . . . . . . . 1 . 5 . . . . . . 10 5 . Recycling Units 6 | . 2 . . 4 . . . . . . . . . . . . . . . . Scanalyzers 49 | . . . . 6 . . . . 9 . 9 . . . . . 9 2 14 . Garrison Access 14 | . . . . 4 . . . . 4 . . . . . . 1 . 3 2 . Terminal Hacks 157 | . . 4 27 20 1 . 17 . 13 . 11 1 2 21 1 6 5 6 20 2 Record 47 | . . 4 18 1 . . 5 . . . . 1 1 14 1 . . . 2 . Part Schematic 6 | . . . . . . . 4 . 1 . . . . . . . . . 1 . Robot Analysis 13 | . . . 8 . . . 4 . . . . . . . . . . . 1 . Prototype ID Bank 14 | . . . . 1 . . 4 . . . . . . 6 . . 1 . 2 . Open Door 6 | . . . . . 1 . . . . . . . 1 1 . . 1 . 1 1 Level Access Points 2 | . . . . . . . . . 1 . . . . . . . . . 1 . Branch Access Points 5 | . . . . 1 . . . . 1 . 1 . . . . 1 . 1 . . Emergency Access Points 4 | . . . . 1 . . . . 1 . . . . . . 1 . . 1 . Machine Index 2 | . . . . . . . . . 1 . . . . . . . . . 1 . Terminal Index 4 | . . . . 3 . . . . . . 1 . . . . . . . . . Garrison Index 1 | . . . . 1 . . . . . . . . . . . . . . . . Alert Level 3 | . . . . 2 . . . . . . . . . . . . . . 1 . Unreport Threat 3 | . . . . . . . . . 1 . 1 . . . . . . . 1 . Locate Traps 4 | . . . . 1 . . . . . . 1 . . . . 1 . . 1 . Dispatch Records 4 | . . . . 1 . . . . 1 . 1 . . . . . . 1 . . Security Status 4 | . . . . . . . . . . . 1 . . . . . 1 1 1 . Surveillance Status 2 | . . . . 1 . . . . . . 1 . . . . . . . . . Patrol Status 2 | . . . . . . . . . 1 . 1 . . . . . . . . . Recall Investigation 2 | . . . . . . . . . . . . . . . . . . . 2 . Recall Extermination 4 | . . . . 2 . . . . . . . . . . . . . 2 . . Recall Reinforcements 8 | . . . . . . . . . 3 . 1 . . . . . 1 1 2 . Recall Assault 1 | . . . . . . . . . . . . . . . . . . . 1 . Hauler Manifests 5 | . . . . 2 . . . . 1 . 1 . . . . 1 . . . . Registered Components 3 | . . . . 1 . . . . 1 . . . . . . 1 . . . . Zone Layout 5 | . . . . 2 . . . . . . 1 . . . . 1 . . 1 . Proto ID Catalog 1 | . . . 1 . . . . . . . . . . . . . . . . . Protovariant Controls 1 | . . . . . . . . . . . . . . . . . 1 . . . Activate Exoskeleton 1 | . . . . . . . . . . . . . . . . . . . . 1 Fabricator Hacks 7 | . . . . 3 . . . . 2 . 2 . . . . . . . . . Network Status 2 | . . . . 2 . . . . . . . . . . . . . . . . Load Schematic 2 | . . . . . . . . . 1 . 1 . . . . . . . . . Build 3 | . . . . 1 . . . . 1 . 1 . . . . . . . . . Repair Station Hacks 10 | . 1 . . . . . . . . . 3 . . . . . . 2 4 . Scan Component 6 | . 1 . . . . . . . . . 1 . . . . . . 2 2 . Repair 3 | . . . . . . . . . . . 1 . . . . . . . 2 . Refit 1 | . . . . . . . . . . . 1 . . . . . . . . . Recycling Unit Hacks 3 | . 1 . . 2 . . . . . . . . . . . . . . . . Retrieve Components 3 | . 1 . . 2 . . . . . . . . . . . . . . . . Scanalyzer 24 | . . . . 1 . . . . 6 . 5 . . . . . 2 1 9 . Insert Component 7 | . . . . . . . . . 2 . 1 . . . . . 2 . 2 . Analyze 4 | . . . . . . . . . 1 . 2 . . . . . . . 1 . Retrieve Study 13 | . . . . 1 . . . . 3 . 2 . . . . . . 1 6 . Garrison Access Hacks 4 | . . . . 1 . . . . 1 . . . . . . 1 . . 1 . Seal Access 4 | . . . . 1 . . . . 1 . . . . . . 1 . . 1 . Unauthorized Hacks 40 | . 8 . . 10 . . . . 8 . 4 . . . . 4 . 4 2 . Terminals 37 | . 7 . . 10 . . . . 8 . 4 . . . . 3 . 4 1 . Assimilate 2 | . . . . 1 . . . . . . 1 . . . . . . . . . Botnet 12 | . 3 . . 2 . . . . 3 . 1 . . . . . . 2 1 . Operators 5 | . 1 . . 1 . . . . 1 . . . . . . 1 . 1 . . Skim 18 | . 3 . . 6 . . . . 4 . 2 . . . . 2 . 1 . . Fabricators 1 | . . . . . . . . . . . . . . . . 1 . . . . Fabnet 1 | . . . . . . . . . . . . . . . . 1 . . . . Repair Stations . | . . . . . . . . . . . . . . . . . . . . . Recycling Units 1 | . 1 . . . . . . . . . . . . . . . . . . . Reject 1 | . 1 . . . . . . . . . . . . . . . . . . . Scanalyzers 1 | . . . . . . . . . . . . . . . . . . . 1 . Researchers 1 | . . . . . . . . . . . . . . . . . . . 1 . Garrison Access . | . . . . . . . . . . . . . . . . . . . . . Data Cores Recovered 2 | . . . . 1 . . . . . . . . . . . . . . . 1 Used . | . . . . . . . . . . . . . . . . . . . . . Hacking Detections 58 | . 6 . . 12 . . . . 5 . 6 . . . . 4 7 8 9 1 Full Trace Events 4 | . . . . . . . . . 2 . 1 . . . . . 1 . . . Feedback Events . | . . . . . . . . . . . . . . . . . . . . . Feedback Blocked . | . . . . . . . . . . . . . . . . . . . . . Robot Schematics Acquired 7 | . . . . . . . . . . . . . . . . . . . 7 . Robots Built 2 | . . . . 2 . . . . . . . . . . . . . . . . Authchips . | . . . . . . . . . . . . . . . . . . . . . Time 152 | . . . . 152 . . . . . . . . . . . . . . . . Total Robot Build Rating 10 | . . . . 10 . . . . . . . . . . . . . . . . Part Schematics Acquired 20 | . . . . . . . 4 . 2 . 1 . . . . . 5 . 8 . Parts Built 1 | . . . . . . . . . . . 1 . . . . . . . . . Authchips . | . . . . . . . . . . . . . . . . . . . . . Time 152 | . . . . . . . . . 76 . 76 . . . . . . . . . Total Part Build Rating 5 | . . . . . . . . . . . 5 . . . . . . . . . Part Studies Acquired 13 | . . . . 1 . . . . 3 . 2 . . . . . . 1 6 . Parts Repaired 3 | . . . . . . . . . . . 1 . . . . . . . 2 . Time 157 | . . . . . . . . . . . 47 . . . . . . . 110 . Parts Recycled . | . . . . . . . . . . . . . . . . . . . . . Recycled Matter . | . . . . . . . . . . . . . . . . . . . . . Retrieved Matter . | . . . . . . . . . . . . . . . . . . . . . Retrieved Components 9 | . 9 . . . . . . . . . . . . . . . . . . . Parts Scanalyzed 4 | . . . . . . . . . 1 . 1 . . . . . 1 . 1 . Part Schematics Acquired 3 | . . . . . . . . . 1 . 1 . . . . . . . 1 . Parts Damaged 1 | . . . . . . . . . . . . . . . . . 1 . . . Bothacking | -11 -10 -10 -7 -5 -5 -5 -5 -4 -4 -4 -4 -4 -4 -4 -3 -3 -3 -2 -2 -2 ------------ Run | Yrd Mat Sub Scr Fac Upp Upp Zhi Pro Fac Was Fac Upp Upp War Pro Res Tes Res Qua Sec Used RIF Installer . | . . . . . . . . . . . . . . . . . . . . . Robots Hacked 2 | . . . . . . . . . . . . . . . . . . 2 . . Non-combat . | . . . . . . . . . . . . . . . . . . . . . Combat 2 | . . . . . . . . . . . . . . . . . . 2 . . Robot Hacks Applied . | . . . . . . . . . . . . . . . . . . . . . Relay Couplers Released . | . . . . . . . . . . . . . . . . . . . . . Fabnet Peak Effective % 3 | . . . . . . . . . . . . . . . . . . 3 3 3 Autooverrided 2 | . . . . . . . . . . . . . . . . . . 2 . . Robots Rewired 6 | . . . . . 1 . . . . . . . . 5 . . . . . . Allies Hacked 1 | . . . . . . . . . . . . . . 1 . . . . . . Hacks Repelled . | . . . . . . . . . . . . . . . . . . . . . Allies | -11 -10 -10 -7 -5 -5 -5 -5 -4 -4 -4 -4 -4 -4 -4 -3 -3 -3 -2 -2 -2 -------- Run | Yrd Mat Sub Scr Fac Upp Upp Zhi Pro Fac Was Fac Upp Upp War Pro Res Tes Res Qua Sec Total Allies 13 | . . . . 3 1 . . . . . 1 . . 5 . . . 2 . 1 Largest Group 5 | . . . . . 1 1 . . . . 1 . . 5 . . . 1 . 1 Highest-Rated Group 1204 | . . . . . 85 85 . . . . 10 . . 305 . . . 30 . 1204 Highest-Rated Ally 1204 | . . . . . 85 85 . . . . 10 . . 68 . . . 30 . 1204 Total Orders 4 | . . . . . . 2 . . . . . . . 2 . . . . . . STAY 1 | . . . . . . . . . . . . . . 1 . . . . . . ROAM 1 | . . . . . . 1 . . . . . . . . . . . . . . FOLLOW 2 | . . . . . . 1 . . . . . . . 1 . . . . . . Ally Attacks 70 | . . . . . . 7 . . . . . . . 12 . . . 3 . 48 Total Damage 6752 | . . . . . . 247 . . . . . . . 806 . . . 24 . 5675 Kills 13 | . . . . . . 1 . . . . . . . 4 . . . . . 8 Allies Corrupted . | . . . . . . . . . . . . . . . . . . . . . Allies Melted . | . . . . . . . . . . . . . . . . . . . . . Intel | -11 -10 -10 -7 -5 -5 -5 -5 -4 -4 -4 -4 -4 -4 -4 -3 -3 -3 -2 -2 -2 ------- Run | Yrd Mat Sub Scr Fac Upp Upp Zhi Pro Fac Was Fac Upp Upp War Pro Res Tes Res Qua Sec Active Infowar (turns) 9687 | . 2087 . . 776 555 468 120 804 272 43 305 1250 332 488 162 234 101 503 612 575 Optics 7597 | . . . . 776 555 468 120 804 272 43 305 1250 332 488 162 234 101 503 612 572 Sensors 6974 | . . . . 691 549 452 120 804 272 20 300 1246 328 488 162 234 101 503 561 143 Structural 812 | . 204 . . 3 . . . . . . . . . . . 226 101 278 . . Seismic 1885 | . 1883 . . . . . . . . . . . . . . . . . 2 . Machine Analysis 780 | . . . . . . . . . . . . . . . . . . . 205 575 Jamming 2533 | . . . . 733 135 . 83 804 170 20 121 . . . . 227 37 . 203 . ECM 1150 | . . . . . . . . . . . 97 . . . . . . 160 495 398 Robot Analysis Total 13 | . . . 8 . . . 4 . . . . . . . . . . . 1 . Derelict Logs Recovered 13 | . . 1 5 . 1 2 . 1 . . . 2 1 . . . . . . . Drone Launches . | . . . . . . . . . . . . . . . . . . . . . Drone Recoveries . | . . . . . . . . . . . . . . . . . . . . . Exploration | -11 -10 -10 -7 -5 -5 -5 -5 -4 -4 -4 -4 -4 -4 -4 -3 -3 -3 -2 -2 -2 ------------- Run | Yrd Mat Sub Scr Fac Upp Upp Zhi Pro Fac Was Fac Upp Upp War Pro Res Tes Res Qua Sec Turns Passed 18326 | 82 2298 2724 5595 803 555 468 120 804 272 43 305 1250 332 488 162 234 101 503 612 575 Spaces Moved 16140 | 46 747 826 1724 1831 1051 421 243 804 538 133 575 1158 816 1078 350 517 258 1095 1066 863 Core 401 | 4 6 . . . . . . . . . . . . 6 . . . 6 . 379 Treads 2772 | 42 287 719 1724 . . . . . . . . . . . . . . . . . Legs . | . . . . . . . . . . . . . . . . . . . . . Wheels 561 | . 454 107 . . . . . . . . . . . . . . . . . . Hover 10 | . . . . . . . . . . . . . . . . . . . . 10 Flight 12396 | . . . . 1831 1051 421 243 804 538 133 575 1158 816 1072 350 517 258 1089 1066 474 Fastest Speed 17 | 50 150 150 320 26 25 28 25 28 25 27 17 17 20 17 27 17 17 17 17 32 Average Speed 83 | 150 228 312 322 27 27 28 27 28 26 29 27 26 26 27 27 26 23 25 27 41 Slowest Speed 340 | 160 320 340 340 32 28 101 28 28 28 32 32 27 27 150 27 27 27 200 37 60 Overloaded Moves 793 | . . . . . 97 . 5 . . . 15 86 42 42 . 8 75 291 132 . Propulsion Burnouts . | . . . . . . . . . . . . . . . . . . . . . Robots Hopped 76 | . . . . 7 4 1 . . . 3 6 1 . 3 . 3 4 37 4 3 Potential Cave-ins 7 | . . . . . . . . . . . . 7 . . . . . . . . Cave-ins Triggered 1 | . . . . . . . . . . . . 1 . . . . . . . . Teleports 1 | . . . . . . . . . . . . . . . . . . . 1 . Exploration Rate (%) 60 | 5 99 37 90 49 92 61 63 80 14 85 13 90 87 94 56 17 43 48 83 58 Regions Visited 20 Branch Regions 13 Pre-discovered Areas 7 | . . . 1 1 . . 3 . . . . 2 . . . . . . . . Known Exits Taken 14 | . . . . 1 1 1 1 1 . . 1 1 1 1 1 1 1 1 1 . Unknown Exits Taken 4 | 1 1 1 1 . . . . . . . . . . . . . . . . . Scrap Searched 32 | . . 6 10 . 5 2 . 2 . . . 3 3 . 1 . . . . . Spaces Dug 255 | . . 1 . 24 . . . 57 11 . . 127 4 . . 7 1 5 8 10 Terrain Destroyed 418 | . 16 12 . 24 . . . 57 11 . . 127 62 . . 7 1 5 29 67 Melee 86 | . . . . 24 . . . 7 11 . . 9 4 . . 7 1 5 8 10 Projectile 3 | . . 3 . . . . . . . . . . . . . . . . . . AOE 329 | . 16 9 . . . . . 50 . . . 118 58 . . . . . 21 57 Terrain Rammed . | . . . . . . . . . . . . . . . . . . . . . Walls Destroyed . | . . . . . . . . . . . . . . . . . . . . . Machines Disabled . | . . . . . . . . . . . . . . . . . . . . . Actions | -11 -10 -10 -7 -5 -5 -5 -5 -4 -4 -4 -4 -4 -4 -4 -3 -3 -3 -2 -2 -2 --------- Run | Yrd Mat Sub Scr Fac Upp Upp Zhi Pro Fac Was Fac Upp Upp War Pro Res Tes Res Qua Sec Total 20360 | 59 1232 939 1779 2046 1294 754 281 1363 643 133 677 2082 920 1270 416 599 278 1239 1321 1035 Wait 3286 | . 353 58 3 110 225 319 18 543 66 . 61 881 87 101 67 46 3 128 138 79 Move 15976 | 45 746 825 1723 1817 1043 418 242 803 538 127 562 1154 815 1072 349 510 248 1025 1057 857 Hop 67 | . . . . 6 3 1 . . . 2 6 1 . 2 . 3 4 32 4 3 Pick Up 180 | 11 33 13 22 9 1 . 3 . 6 1 6 11 3 11 . 9 1 9 15 16 Fast Attach 81 | . 9 1 . 3 2 4 3 . 2 1 2 . . 8 . 2 5 5 22 12 Attach 92 | 3 5 4 5 10 . . 1 . 2 . . 11 4 7 . 5 . 8 10 17 Detach 8 | . . . . 1 . . . . . . . . 1 1 . . . . 1 4 Swap 79 | . 10 8 3 19 3 2 . 4 4 . 5 . . 2 . 4 2 2 7 4 Drop 189 | . 17 13 23 18 2 4 5 . 8 2 8 9 3 16 . 12 7 4 27 11 Fire 97 | . 57 16 . 1 . 3 . 6 . . . 4 3 1 . . . . 1 5 Melee 215 | . . . . 52 9 3 9 7 17 . 27 10 4 . . 8 7 19 26 17 Ram 9 | . 2 . . . . . . . . . . . . . . . . . . 7 Kick . | . . . . . . . . . . . . . . . . . . . . . Crush . | . . . . . . . . . . . . . . . . . . . . . Escape Stasis 22 | . . . . . . . . . . . . 1 . . . . 1 7 13 . Rewire 58 | . . . . . 6 . . . . . . . . 49 . . . . . 3 Trap 1 | . . 1 . . . . . . . . . . . . . . . . . . Miscellaneous . | . . . . . . . . . . . . . . . . . . . . . Route ------- -11/Scrapyard -10/Materials (discovered 6 exits: [*Mat x3] / [*Min x2] / *Sub) -10/Subcaves (discovered 3 exits: [*Mat x2] / *Scr) -7/Scraptown (discovered 2 exits: *Fac x2) -5/Factory (discovered 5 exits: *Fac x3 / *Upp x2) -5/Upper Caves -5/Upper Caves -5/Zhirov -4/Proximity Caves -4/Factory (discovered 6 exits: Res x4 / Upp x2) -4/Waste -4/Factory (discovered 2 exits: *Upp x2) -4/Upper Caves -4/Upper Caves (discovered 2 exits: *Res / *War) -4/Warlord -3/Proximity Caves -3/Research (discovered 4 exits: *Res / Arm / *Tes x2) -3/Testing -2/Research (discovered 4 exits: *Acc x2 / *Qua x2) -2/Quarantine (discovered 3 exits: Acc / *Sec / *Frg) -2/Section 7 History --------- Turn | Location | Event 16 | -11/Scrapyard | Discovered new exit (range 15) 83 | -11/Scrapyard | Entered Materials 358 | -10/Materials | Build established: Mutant 865 | -10/Materials | Discovered new exit (range 3) 1362 | -10/Materials | Discovered new exit (range 8) 1416 | -10/Materials | Discovered new exit (range 15) 1670 | -10/Materials | Discovered new exit (range 15) 1878 | -10/Materials | Discovered new exit (range 9) 2125 | -10/Materials | Discovered new exit (range 16) 2381 | -10/Materials | Entered Subcaves 2382 | -10/Subcaves | Approached by a straggling Scientist 2519 | -10/Subcaves | System corruption reached 10% 3027 | -10/Subcaves | Disturbed a concealed Subdweller 3975 | -10/Subcaves | Visited Clippyterm 3985 | -10/Subcaves | Learned Research machine intel 3985 | -10/Subcaves | Learned Factory stockpile data 4030 | -10/Subcaves | Discovered new exit (range 9) 4142 | -10/Subcaves | Discovered new exit (range 5) 4167 | -10/Subcaves | Shifting Twisted Machinery released Sub. Power Source 4816 | -10/Subcaves | Learned 8 Materials zone layouts 5105 | -10/Subcaves | Entered Scraptown 5105 | -7/Scraptown | System corruption cleaned by C-Scrubber 5601 | -7/Scraptown | Discovered new exit (range 5) 5782 | -7/Scraptown | Scanned Subdweller tech in exchange for log data 5795 | -7/Scraptown | Learned Research stockpile data 5798 | -7/Scraptown | Learned Factory emergency access door positions 5802 | -7/Scraptown | Learned Research garrison access intel 5805 | -7/Scraptown | Learned location of Armory (-3) 5808 | -7/Scraptown | Learned location of 1 exit from Upper Caves 5910 | -7/Scraptown | Visited Comm Corps 6096 | -7/Scraptown | Visited Spacefarers 6246 | -7/Scraptown | Visited Bundlers 7108 | -7/Scraptown | Visited Shadow of the Wyrm 7284 | -7/Scraptown | Visited Awakened 7323 | -7/Scraptown | Visited Cyclists 7403 | -7/Scraptown | Visited Supply Room 7483 | -7/Scraptown | Visited UFD Registry 7483 | -7/Scraptown | Registered with UFD as "Roughspawn" 7572 | -7/Scraptown | Entered Cyclist Reading Room 7748 | -7/Scraptown | Visited Science Guys 7851 | -7/Scraptown | Visited Chapter 10 7908 | -7/Scraptown | Visited LU-1G1's Boring Crew 8191 | -7/Scraptown | Visited Analyses Database 8261 | -7/Scraptown | Visited Research Penetration Think Tank 8383 | -7/Scraptown | Visited Observation Area 8543 | -7/Scraptown | Visited Abandonware Association 8584 | -7/Scraptown | Learned abandonware demo "REPAIR.EXE" 8885 | -7/Scraptown | Visited A0-MCA Data Center 8904 | -7/Scraptown | Given a B- rating by A0-MCA 8912 | -7/Scraptown | Found A0-MCA's Component Scanner 8979 | -7/Scraptown | Visited DA-N13 Charitable Foundation 9015 | -7/Scraptown | Found DCF Scrap (28 items) 9139 | -7/Scraptown | Visited Scrap Suit Storage 10502 | -7/Scraptown | Met Optimus 10502 | -7/Scraptown | Accepted into 0bPrime 10681 | -7/Scraptown | Discovered new exit (range 5) 10700 | -7/Scraptown | Entered Factory 10700 | -5/Factory | Evolved 10 slots: Power x1, Propulsion x3, Utility x6 10858 | -5/Factory | Discovered new exit (range 19) 10865 | -5/Factory | Identified exit to Factory 10873 | -5/Factory | Discovered exit to Factory (range 9) 11175 | -5/Factory | Identified exit to Upper Caves 11187 | -5/Factory | Central database locked down 11217 | -5/Factory | Discovered exit to Factory (range 5) 11242 | -5/Factory | Build established: Derelict-Ninja 11248 | -5/Factory | Spotted B-75 Beast 11285 | -5/Factory | Lost 3 parts (1p2n) 11379 | -5/Factory | Learned 4 Testing zone layouts 11412 | -5/Factory | Learned Testing terminal intel 11435 | -5/Factory | Learned location of Warlord (-4) 11448 | -5/Factory | Learned 2 Armory zone layouts 11452 | -5/Factory | Learned Quarantine stockpile data 11453 | -5/Factory | Learned location of 1 exit from Extension 11455 | -5/Factory | Learned 4 Testing zone layouts 11465 | -5/Factory | Learned 4 Proximity Caves zone layouts 11503 | -5/Factory | Fabricated R-10 Processor? 11503 | -5/Factory | Entered Upper Caves 11504 | -5/Upper Caves | Identified exit to Upper Caves 11523 | -5/Upper Caves | Learned location of 1 exit from Factory 11547 | -5/Upper Caves | Build established: Hacker-Ninja 11558 | -5/Upper Caves | Encountered a Warlord checkpoint 11926 | -5/Upper Caves | Build established: Hacker-Scout 11940 | -5/Upper Caves | Spotted B-75 Beast 11974 | -5/Upper Caves | Rewired B-75 Beast 12058 | -5/Upper Caves | Entered another Upper Caves area 12058 | -5/Upper Caves | Accompanied by 1 ally 12062 | -5/Upper Caves | Learned Factory non-interactive machine intel 12325 | -5/Upper Caves | Learned 4 Factory zone layouts 12430 | -5/Upper Caves | Ambushed by research squad 12436 | -5/Upper Caves | Discovered new exit (range 11) 12439 | -5/Upper Caves | Identified exit to Zhirov 12442 | -5/Upper Caves | Acquired the password to a Derelict Tinkerer's latest research 12451 | -5/Upper Caves | Found Molecular Deconstructor 12526 | -5/Upper Caves | Entered Zhirov 12526 | -5/Zhirov | Discovered new exit (range 3) 12527 | -5/Zhirov | Identified exit to Proximity Caves 12532 | -5/Zhirov | Met Zhirov 12538 | -5/Zhirov | Learned location of Quarantine (-2) 12538 | -5/Zhirov | Learned location of Testing (-3) 12538 | -5/Zhirov | Learned location of Command (-1) 12541 | -5/Zhirov | Zhirov requested help retrieving the SGEMP Prototype 12546 | -5/Zhirov | Found Alien Artifact 12546 | -5/Zhirov | Identified Integrated Dissipator 12546 | -5/Zhirov | Installed Integrated Dissipator, increased core heat dissipation (+20) 12605 | -5/Zhirov | Found Alien Artifact 12641 | -5/Zhirov | Cloak Generator disabled 12641 | -5/Zhirov | Attacked by Zhirov 12646 | -5/Zhirov | Entered Proximity Caves 12647 | -4/Proximity Caves | Learned location of 1 exit from Research 12832 | -4/Proximity Caves | Build established: Hacker-Ninja 13302 | -4/Proximity Caves | Spotted B-86 Titan 13445 | -4/Proximity Caves | Discovered exit to Factory (range 13) 13450 | -4/Proximity Caves | Entered Factory 13450 | -4/Factory | Evolved 2 slots: Utility x2 13451 | -4/Factory | Identified exit to Upper Caves 13453 | -4/Factory | Loaded intel: 200 non-interactive machine locations 13613 | -4/Factory | Identified Transdimensional Reconstructor 13650 | -4/Factory | Identified exit to Research 13722 | -4/Factory | Sucked down chute 13722 | -4/Factory | Entered Waste 13725 | -4/Waste | Found Broken Fusion Bomb Launcher 13737 | -4/Waste | Spotted C-40 Crusher 13738 | -4/Waste | Spotted C-40 Crusher 13740 | -4/Waste | Spotted C-40 Crusher 13741 | -4/Waste | Spotted C-40 Crusher 13741 | -4/Waste | Crushed by Compactor (1 part destroyed, 1 dropped) 13745 | -4/Waste | Spotted C-40 Crusher 13746 | -4/Waste | Spotted C-40 Crusher 13749 | -4/Waste | Discovered new exit (range 10) 13751 | -4/Waste | Identified exit to Factory 13757 | -4/Waste | Found Spectral Analyzer 13765 | -4/Waste | Entered Factory 13846 | -4/Factory | Repaired Broken Fusion Bomb Launcher? 13994 | -4/Factory | Fabricated Gravity Neutralizer (x1) 14070 | -4/Factory | Entered Upper Caves 14082 | -4/Upper Caves | Attracted the attention of an 0b10 checkpoint 14086 | -4/Upper Caves | Attracted the attention of an 0b10 outpost 14357 | -4/Upper Caves | Build established: Hacker-Scout 15214 | -4/Upper Caves | Crushed by falling debris 15245 | -4/Upper Caves | Lost 3 parts (1n2u) 15279 | -4/Upper Caves | Discovered new exit (range 11) 15281 | -4/Upper Caves | Identified exit to Upper Caves 15290 | -4/Upper Caves | Found Alien Artifact 15291 | -4/Upper Caves | Identified Dimensional Node Initializer 15291 | -4/Upper Caves | Initialized slip node 15320 | -4/Upper Caves | Entered another Upper Caves area 15353 | -4/Upper Caves | Discovered exit to Research (range 8) 15573 | -4/Upper Caves | Learned Research security intel 15618 | -4/Upper Caves | Attracted the attention of an 0b10 checkpoint 15637 | -4/Upper Caves | Discovered new exit (range 17) 15651 | -4/Upper Caves | Identified exit to Warlord 15652 | -4/Upper Caves | Entered Warlord 15662 | -4/Warlord | Discovered new exit (range 12) 15665 | -4/Warlord | Identified exit to Proximity Caves 15673 | -4/Warlord | System corruption cleaned by Quarantine Array 15855 | -4/Warlord | Warlord's base attacked by MAIN.C 15855 | -4/Warlord | Found Prototype Special Weapon 15856 | -4/Warlord | Identified RU-N14's Throwing Claymores v3 15893 | -4/Warlord | Found Prototype Energy Gun 15894 | -4/Warlord | Identified Vortex Shotgun 15896 | -4/Warlord | Found Prototype Energy Cannon 15897 | -4/Warlord | Identified Vortex Cannon 15904 | -4/Warlord | Found Vortex Cannon 15920 | -4/Warlord | Rebuked by Warlord 15996 | -4/Warlord | Found Prototype Reactor 15996 | -4/Warlord | Identified Vortex Chain Reactor 16002 | -4/Warlord | Found Prototype Device 16002 | -4/Warlord | Identified Exp. Phase Shifter 16116 | -4/Warlord | Lost 3 allies 16121 | -4/Warlord | Warlord forces counterattacked 16140 | -4/Warlord | Entered Proximity Caves 16225 | -3/Proximity Caves | Discovered exit to Research (range 12) 16302 | -3/Proximity Caves | Entered Research 16302 | -3/Research | Evolved 2 slots: Utility x2 16303 | -3/Research | Identified exit to Research 16306 | -3/Research | Loaded intel: 113 machine locations 16307 | -3/Research | Loaded intel: 4 garrison access locations 16329 | -3/Research | Identified exit to Armory 16329 | -3/Research | Identified exit to Testing 16420 | -3/Research | Found Prototype Launcher 16420 | -3/Research | Identified Tactical Quantum Warhead 16533 | -3/Research | Spotted B-86 Titan 16536 | -3/Research | Entered Testing 16538 | -3/Testing | Loaded intel: 12 terminal locations 16568 | -3/Testing | Spotted PG-5XNMF1RESK 16573 | -3/Testing | Found Prototype Launcher 16573 | -3/Testing | Identified Adv. Micro-nuke Launcher 16595 | -3/Testing | Protovariant out of control (PP-GHUK52NKRD) 16595 | -3/Testing | Unleashed a protovariant (PP-GHUK52NKRD) 16613 | -3/Testing | Found Prototype Protection 16613 | -3/Testing | Identified Lgt. Regenerative Plating 16615 | -3/Testing | Found Lgt. Regenerative Plating 16625 | -3/Testing | Found Prototype Energy Cannon 16625 | -3/Testing | Identified Disintegrator 16637 | -3/Testing | Entered Research 16637 | -2/Research | Evolved 2 slots: Utility x2 16808 | -2/Research | Identified exit to Quarantine 16921 | -2/Research | Discovered new exit (range 8) 16923 | -2/Research | Identified exit to Access 16923 | -2/Research | Discovered exit to Access (range 8) 16978 | -2/Research | Lost 3 parts (3u) 16991 | -2/Research | Spotted B-90 Cyclops 17004 | -2/Research | Local machine network offline 17040 | -2/Research | Spotted B-90 Cyclops 17140 | -2/Research | Entered Quarantine 17209 | -2/Quarantine | Repaired Broken Transmission Jammer 17232 | -2/Quarantine | Found Alien Artifact 17232 | -2/Quarantine | Identified Core Reset Matrix 17232 | -2/Quarantine | Used Core Reset Matrix 17236 | -2/Quarantine | Detected hypermatrix surge 17236 | -2/Quarantine | Sensed 16 artifacts in vicinity 17323 | -2/Quarantine | Found Core Cannon 17397 | -2/Quarantine | Repaired Mni. Fusion Reactor 17449 | -2/Quarantine | Found Dimensional Node Initializer 17449 | -2/Quarantine | Initialized slip node 17454 | -2/Quarantine | Found Hpw. Transdimensional Reconstructor 17458 | -2/Quarantine | Met incapacitated Sigix Warrior 17458 | -2/Quarantine | Lockdown squad dispatched 17459 | -2/Quarantine | Acquired the access code to the Sigix quarantine chamber 17460 | -2/Quarantine | Unlocked Sigix quarantine chamber 17461 | -2/Quarantine | Found Sigix Containment Pod 17462 | -2/Quarantine | Warped through subspace 17470 | -2/Quarantine | Found Terrabomb 17485 | -2/Quarantine | Found Sigix Broadsword 17600 | -2/Quarantine | Cryocooling Duct disabled 17615 | -2/Quarantine | Ambient heat levels rising (+20) 17615 | -2/Quarantine | Non-combat units ordered to evacuate 17644 | -2/Quarantine | Scanned by Researcher 17679 | -2/Quarantine | Core integrity fell below 50% 17723 | -2/Quarantine | Lost 9 parts (2p3n3u1w) 17724 | -2/Quarantine | Spotted Fortress 17731 | -2/Quarantine | Build established: Hacker-Ninja 17749 | -2/Quarantine | Discovered new exit (range 6) 17749 | -2/Quarantine | Discovered new exit (range 6) 17750 | -2/Quarantine | Identified exit to Protoforge 17751 | -2/Quarantine | Identified exit to Section 7 17752 | -2/Quarantine | Entered Section 7 17753 | -2/Section 7 | Detected hypermatrix surge 17753 | -2/Section 7 | Sensed 21 artifacts in vicinity 17810 | -2/Section 7 | Spotted B-90 Cyclops 17862 | -2/Section 7 | Spotted S7 Guard 17867 | -2/Section 7 | Found Core Regenerator 17867 | -2/Section 7 | Used Core Regenerator, restored core integrity (+362) 17878 | -2/Section 7 | Found Integrated Reactor 17878 | -2/Section 7 | Installed Integrated Reactor, increased core energy generation (+10) 17921 | -2/Section 7 | System corruption reached 10% 17957 | -2/Section 7 | Spotted S7 Guard 18014 | -2/Section 7 | Spotted Executioner 18014 | -2/Section 7 | Spotted Executioner 18025 | -2/Section 7 | Spotted Alpha 7 18030 | -2/Section 7 | Spotted B-99 Colossus 18049 | -2/Section 7 | Lost 11 parts (1p5n5u) 18054 | -2/Section 7 | Spotted Executioner 18060 | -2/Section 7 | Activated Sigix Exoskeleton 18060 | -2/Section 7 | Received instructions from Sigix Warrior 18067 | -2/Section 7 | Spotted Executioner 18192 | -2/Section 7 | Sigix Exoskeleton integrity reduced to 80% 18217 | -2/Section 7 | Build established: Hacker-Mutant 18227 | -2/Section 7 | Sigix Exoskeleton integrity reduced to 60% 18227 | -2/Section 7 | Lost 3 parts (2u1w) 18252 | -2/Section 7 | Sigix Exoskeleton integrity reduced to 40% 18255 | -2/Section 7 | Core integrity fell below 20% 18271 | -2/Section 7 | Spotted Investigator 18272 | -2/Section 7 | Sigix Exoskeleton integrity reduced to 20% 18281 | -2/Section 7 | Allies destroyed B-99 Colossus 18293 | -2/Section 7 | Spotted Striker 18327 | -2/Section 7 | Destroyed by G-73 Enforcer with Phase Gun Last Messages --------------- them all..." 18293_ Sigix Warrior destroyed. 18301_ 9PKZ4NARE5KAU5 PTL/A>PIT4I 18305_ Adv. Heat Sink blown off. 18305_ Adv. System Shield blown off. 18305_ E-15 Imp destroyed. 18306_ Acquired Unknown Flight Unit. 18307_ Machine disabled. 18307_ Acquired Unknown Flight Unit. 18308_ Identified Cesium-ion Thruster. 18309_ Knocked back. 18311_ Imp. Antigrav System destroyed. 18321_ Cesium-ion Thruster destroyed. 18322_ M-36 Artificer repairs M-36 Artificer. 18324_ Adv. System Shield destroyed. 18324_ Spectral Analyzer destroyed. 18324_ M-36 Artificer repairs G-73 Enforcer Lgt. Quantum Reactor. 18326_ ALERT: Heavy assault forces dispatched. 18327_ System corrupted: Matter fused (-9). Map ----- +----------------------------------------------------+ | " " """""""""?? | | " """ " " " " """ | | " "" T " " " " | | " """" " " " "" | | "??" "" | | " "??" "" """ "" | | "" ? """ " | | """ " " "" """"""""" | | """ """" " ""???????" "" | | """ "?" """ "" "?"""""""" ""? | | "?"""" "?" "" | | ????? """"" | | ?? "" | | """"" " g | | ????" % g | | ????" g | | """ """"" % | | """ % | | ??" | | ?? % | | ???? % """""""""" " """""""" | | ????????"""""""""" ###"""""""""""""""""""" | | ??????????"""""""" #?#"""""""""""""""""""" | | ?????????????####### ###%;#?##################### | | ???????????????????# ??# #?????????????????????? | | ????????????????????##??#@ #?????????????????????? | | ????????????????????????# #?????????????????????? | | ????????????????????????# #??#################??? | | ????????????????????????# #??#"" """ """""#??? | | ????????????????????????# #??#*! "" """""#??? | | ????????????????????????# [#??#!=[="" "#??? | | ?????????????############l!####]![=! """""#??? | | ?????????????# l|*%==!!%=%* """"#??? | | ?????????????# =[% %!!%*=][!! % """""#??? | | ?????????????# ###############[!!!%%[ """""#??? | | ?????????##### #?????????????#""!%%/[ "#??? | | ??????#### # #####?????????#" ![%%"% "#??? | | ??????#" """"" """"#?????????#"""" " """ "#??? | | ??????#" """#?????????######### # ####??? | | ??????#" """#?????????????????# ###?????? | | ??????#""""" """#?????????????????# #???????? | | ??????#""""" """#?????????????????# #???????? | | ??????#""""" """#?????????????????# #???????? | | ??????#""""" """#?###############?# #???????? | | ??????#" """"#?#"""""""""""""#?# #???????? | | ??????#""""" """#?#"" """" #?# #???????? | | ??????#""""" """"#?#"" """" #?# #???????? | | ??????######## #####?#"" """" ### #???????? | | ?????????????# #?????#"" """" #???????? | | ?????????????# #?????# #???????? | +----------------------------------------------------+ Best States ------------- Heat Dissipation 88 Energy Generation 49 Energy Capacity 350 Matter Stores 300 Matter Capacity 300 Sight Range 24 Robot Scan Range 16 Terrain Scan Density 210 ECM Strength 1 Jamming Range 14 Power Amplification 30 Additional Mass Support 12 Corruption Block 20 Armor Coverage 300 Propulsion Shielding 66 Evasion (%) 77 Melee Accuracy 6 Target Analysis 8 Armor Integrity Analysis 30 Recoil Reduction 2 Offensive Hacking 34 Defensive Hacking 39 Item Schematics ----------------- Adv. Sensor Array | -2/Quarantine | Scanalyzed Hvy. Tesla Rifle | -2/Quarantine | Archive Graviton Reactor | -2/Quarantine | Archive Enh. Nova Cannon | -2/Quarantine | Hacked Coolant Network | -2/Quarantine | Archive Exp. Gyrokinetic Inverter | -2/Quarantine | Archive Hds. Centrium Wheel | -2/Quarantine | Archive Exp. Energy Well | -2/Quarantine | Archive Robot Schematics ------------------ C-65 Expert | -2/Quarantine | Archive R-06 Scavenger | -2/Quarantine | Archive R-10 Processor | -2/Quarantine | Archive A-27 Freighter | -2/Quarantine | Archive Y-72 Warden | -2/Quarantine | Archive T-07 Excavator | -2/Quarantine | Archive A-02 Transporter | -2/Quarantine | Archive Fabricated ------------ R-10 Processor | x2 | -5/Factory | Preloaded Gravity Neutralizer | x1 | -4/Factory Repaired ---------- Fusion Bomb Launcher | 72% | -4/Factory | Broken Transmission Jammer | 99% | -2/Quarantine | Broken Mni. Fusion Reactor | 12% | -2/Quarantine Studied --------- Field Propulsion Array | -2/Quarantine | Hacked Force Lance | -2/Quarantine | Hacked Impulse Thruster Array | -2/Quarantine | Hacked Fusion Bomb Launcher | -2/Quarantine | Hacked Lance | -2/Quarantine | Hacked Q-thruster | -2/Quarantine | Hacked Alien Tech Used ----------------- Integrated Dissipator Dimensional Node Initializer Core Reset Matrix High-powered Transdimensional Reconstructor Sigix Broadsword Core Regenerator Integrated Reactor Achievements -------------- Everyone Must Die Exposed Low-level Research Challenges ------------ None Game ------ Seed TerrorBiomechanicalFalx Manual? 0 Play Time 03:37:53 Cumulative 168.0 hours Start 2025.10.26 @ 13:24:24 End 2025.10.26 @ 17:08:31 Sessions 1 Manual Loads 0 Difficulty Rogue Special Mode None Game No. 113 Rogue 113 Adventurer 0 Explorer 0 Win Type - Total 6 Types 4/0/1/1/0/0/0/0/0/0 Lore% 81 Gallery% 72 Achievement% 53 Wizard Run 0 Options --------- Layout 1 ASCII 0 Keyboard 0 Movement Mouse Keybinds 0 Fullscreen 2 Font 24/Smallcaps Map View 50x35 Zoom Use 0% Tactical HUD 1 Map Filters NONE Filters NONE Steam 1 RUN: 691c61cc-a9b4-4e25-855d-c0ea01002298